bitfinex-derivatives/quotes_BNBF0:USTF0_20250302
["timestamp","ask_amount","ask_price","bid_price","bid_amount"]
[1740906667164,0.8978879,607.69,607.05,5.81446215]
[1740906667364,2.5253794,607.68,607.05,5.81446215]
[1740906667562,2.5253794,607.67,607.05,4.15546215]
[1740906667762,2.5253794,607.66,607.05,4.15546215]
[1740906667962,2.5253794,607.65,607.05,4.15546215]
[1740906668166,0.8978879,607.64,607.05,4.15546215]
[1740906668367,0.89633318,607.63,607.05,4.15546215]
[1740906668562,1.12662985,607.63,607.05,4.15546215]
[1740906669267,1.12662985,607.62,607.05,4.15546215]
[1740906670066,1.12662985,607.61,607.05,4.15546215]
[1740906670771,1.12662985,607.6,607.05,4.15546215]
[1740906671670,3.95606542,607.74,607.05,4.15546215]
[1740906671869,3.95606542,607.73,607.05,4.15546215]
[1740906672071,2.52153979,607.72,607.05,4.15546215]
[1740906672272,3.64767025,607.71,607.05,4.15546215]
[1740906672470,2.52153979,607.7,607.05,4.15546215]
[1740906672772,3.64767025,607.69,607.05,4.15546215]
[1740906672966,2.52153979,607.68,607.05,4.15546215]
[1740906673166,2.52153979,607.67,607.05,4.15546215]
[1740906673366,2.52131541,607.66,607.05,4.15546215]
[1740906673567,0.89592899,607.65,607.05,4.15546215]
[1740906673766,0.89592899,607.64,607.05,4.15546215]
[1740906673965,0.89592899,607.63,607.05,4.15546215]
[1740906674174,1.12613046,607.64,607.05,4.15546215]
[1740906674773,1.12613046,607.63,607.05,4.15546215]
[1740906675169,3.95357669,607.75,607.05,4.15546215]
[1740906675371,1.62443936,607.74,607.05,4.15546215]
[1740906675570,0.8956617,607.73,607.05,4.15546215]
[1740906675770,0.8956617,607.72,607.05,4.15546215]
[1740906675973,0.8956617,607.72,607.05,3.58446215]
[1740906676174,1.12559947,607.71,607.05,3.58446215]
[1740906676473,2.02126117,607.71,607.05,3.58446215]
[1740906676677,1.12559947,607.71,607.05,3.58446215]
[1740906676881,1.12559947,607.7,607.05,3.58446215]
[1740906677269,1.12559947,607.69,607.05,3.58446215]
[1740906677870,1.12559947,607.68,607.05,3.58446215]
[1740906678480,1.12559947,607.67,607.05,3.58446215]
[1740906678879,1.12559947,607.67,607.05,4.15546215]
[1740906679082,1.12559947,607.66,607.05,4.15546215]
[1740906679277,2.02126117,607.7,607.05,4.15546215]
[1740906679983,1.12559947,607.69,607.05,4.15546215]
[1740906681485,0.89491698,607.68,607.05,4.15546215]
[1740906681685,0.89491698,607.67,607.05,4.15546215]
[1740906681878,0.89491698,607.66,607.05,4.15546215]
[1740906682088,0.89491698,607.67,607.05,4.15546215]
[1740906682287,1.12559947,607.68,607.05,4.15546215]
[1740906682485,0.89488311,607.67,607.05,4.15546215]
[1740906682682,0.89488311,607.66,607.05,4.15546215]
[1740906682985,0.89488311,607.68,607.05,4.15546215]
[1740906683187,2.02048258,607.67,607.05,4.15546215]
[1740906683387,1.12559947,607.67,607.05,4.15546215]
[1740906683588,1.12559947,607.66,607.05,4.15546215]
[1740906684183,1.12559947,607.65,607.05,4.15546215]
[1740906684791,1.12559947,607.64,607.05,4.15546215]
[1740906685587,2.51767624,607.81,607.05,4.15546215]
[1740906685588,1.12559947,607.75,607.05,4.15546215]
[1740906686184,1.12559947,607.74,607.05,4.15546215]
[1740906686583,1.12559947,607.73,607.05,4.15546215]
[1740906687285,1.12559947,607.72,607.05,4.15546215]
[1740906688091,0.89488311,607.77,607.05,4.15546215]
[1740906688287,2.51767624,607.79,607.05,4.15546215]
[1740906688491,1.43175782,607.83,607.05,4.15546215]
[1740906688492,1.12450942,607.76,607.05,4.15546215]
[1740906689192,1.12450942,607.75,607.05,4.15546215]
[1740906689591,1.12450942,607.74,607.05,4.15546215]
[1740906690086,1.12450942,607.73,607.05,4.15546215]
[1740906690491,1.12450942,607.72,607.05,4.15546215]
[1740906690987,2.51721608,607.79,607.05,4.15546215]
[1740906691190,0.89488311,607.78,607.05,4.15546215]
[1740906691392,2.01930198,607.77,607.05,4.15546215]
[1740906691587,1.12441887,607.77,607.05,4.15546215]
[1740906691796,2.01930198,607.77,607.05,4.15546215]
[1740906692093,2.01930198,607.76,607.05,4.15546215]
[1740906692290,1.12441887,607.76,607.05,4.15546215]
[1740906692488,1.62233297,607.79,607.05,4.15546215]
[1740906692489,1.12441887,607.75,607.05,4.15546215]
[1740906692992,1.12441887,607.74,607.05,4.15546215]
[1740906693789,1.12441887,607.73,607.05,4.15546215]
[1740906694194,1.12441887,607.72,607.05,4.15546215]
[1740906694791,0.89478638,607.77,607.05,4.15546215]
[1740906694991,0.89478638,607.76,607.05,4.15546215]
[1740906695191,0.89478638,607.75,607.05,4.15546215]
[1740906695393,0.89478638,607.78,607.05,4.15546215]
[1740906695594,2.01934414,607.77,607.05,4.15546215]
[1740906695791,2.01934414,607.76,607.05,4.15546215]
[1740906695988,0.8948124,607.75,607.05,4.15546215]
[1740906696389,1.12453174,607.74,607.05,4.15546215]
[1740906696795,1.12453174,607.73,607.05,4.15546215]
[1740906697292,1.71871656,607.83,607.05,4.15546215]
[1740906697492,0.8948124,607.82,607.05,4.15546215]
[1740906697691,0.8948124,607.81,607.05,4.15546215]
[1740906697997,2.74738026,607.82,607.05,4.15546215]
[1740906697998,0.8948124,607.8,607.05,4.15546215]
[1740906698195,0.8948124,607.79,607.05,4.15546215]
[1740906698394,1.12464219,607.8,607.05,4.15546215]
[1740906698395,0.8948124,607.78,607.05,4.15546215]
[1740906698593,1.12464219,607.78,607.05,4.15546215]
[1740906698797,1.12464219,607.77,607.05,4.15546215]
[1740906699593,1.12464219,607.76,607.05,4.15546215]
[1740906700191,1.12464219,607.75,607.05,4.15546215]
[1740906700791,1.12464219,607.74,607.05,4.15546215]
[1740906701197,1.12464219,607.73,607.05,4.15546215]
[1740906701594,1.12464219,607.72,607.05,4.15546215]
[1740906702300,1.12464219,607.71,607.05,4.15546215]
[1740906702999,1.12464219,607.7,607.05,4.15546215]
[1740906703393,1.62317504,607.8,607.05,4.15546215]
[1740906703694,0.89556356,607.79,607.05,4.15546215]
[1740906703894,0.89556356,607.78,607.05,4.15546215]
[1740906704094,2.5187386,607.77,607.05,4.15546215]
[1740906704297,2.5187386,607.76,607.05,4.15546215]
[1740906704497,2.5187386,607.75,607.05,4.15546215]
[1740906704696,1.12546562,607.78,607.05,4.15546215]
[1740906704697,0.89556356,607.74,607.05,4.15546215]
[1740906704898,0.89556356,607.73,607.05,4.15546215]
[1740906705099,2.0212623,607.72,607.05,4.15546215]
[1740906705300,1.12546562,607.72,607.05,4.15546215]
[1740906705795,1.12546562,607.71,607.05,4.15546215]
[1740906706194,1.12546562,607.7,607.05,4.15546215]
[1740906706800,1.12546562,607.69,607.05,4.15546215]
[1740906707600,1.12546562,607.68,607.05,4.15546215]
[1740906708202,1.12546562,607.67,607.05,4.15546215]
[1740906709198,1.12546562,607.66,607.05,4.15546215]
[1740906709399,3.05996125,607.77,607.05,4.15546215]
[1740906709598,2.60098323,607.8,607.05,4.15546215]
[1740906709599,3.95654972,607.76,607.05,4.15546215]
[1740906709803,2.52220299,607.75,607.05,4.15546215]
[1740906710103,3.64895113,607.74,607.05,4.15546215]
[1740906710296,2.52220299,607.73,607.05,4.15546215]
[1740906710500,1.12674814,607.73,607.05,4.15546215]
[1740906710899,1.12674814,607.72,607.05,4.15546215]
[1740906711699,1.12674814,607.71,607.05,4.15546215]
[1740906712399,3.06157618,607.82,607.05,4.15546215]
[1740906712605,3.95869135,607.81,607.05,4.15546215]
[1740906712805,5.08609898,607.8,607.05,4.15546215]
[1740906713003,2.52348289,607.79,607.05,4.15546215]
[1740906713203,2.52348289,607.78,607.05,4.15546215]
[1740906713399,2.0245228,607.77,607.05,4.15546215]
[1740906713599,0.89711517,607.76,607.05,4.15546215]
[1740906713798,0.89711517,607.75,607.05,4.15546215]
[1740906713998,1.71861046,607.89,607.05,4.15546215]
[1740906713999,1.12740763,607.74,607.05,4.15546215]
[1740906714502,1.12740763,607.73,607.05,4.15546215]
[1740906715300,3.06312764,607.81,607.05,4.15546215]
[1740906715501,2.52459929,607.8,607.05,4.15546215]
[1740906715699,2.52459929,607.79,607.05,4.15546215]
[1740906715904,0.89750992,607.78,607.05,4.15546215]
[1740906716106,0.89750992,607.77,607.05,4.15546215]
[1740906716307,0.89750992,607.76,607.05,4.15546215]
[1740906716500,1.12789304,607.77,607.05,4.15546215]
[1740906716501,0.89750992,607.75,607.05,4.15546215]
[1740906716699,1.12789304,607.74,607.05,4.15546215]
[1740906717601,1.12789304,607.73,607.05,4.15546215]
[1740906718410,1.12789304,607.72,607.05,4.15546215]
[1740906719005,5.66922599,607.85,607.05,4.15546215]
[1740906719200,6.56711297,607.84,607.05,4.15546215]
[1740906719502,7.69567473,607.83,607.05,4.15546215]
[1740906719706,6.56711297,607.82,607.05,4.15546215]
[1740906720007,3.96229262,607.81,607.05,4.15546215]
[1740906720209,3.96229262,607.8,607.05,4.15546215]
[1740906720409,3.96229262,607.79,607.05,4.15546215]
[1740906720608,3.96229262,607.78,607.05,4.15546215]
[1740906720809,2.52606102,607.77,607.05,4.15546215]
[1740906721008,2.52606102,607.76,607.05,4.15546215]
[1740906721208,0.89804678,607.75,607.05,4.15546215]
[1740906721409,0.89804678,607.74,607.05,4.15546215]
[1740906721609,0.89804678,607.73,607.05,4.15546215]
[1740906721812,1.12856176,607.77,607.05,4.15546215]
[1740906722110,1.12856176,607.72,607.05,4.15546215]
[1740906722406,2.0265007,607.71,607.05,4.15546215]
[1740906722612,0.89793894,607.7,607.05,4.15546215]
[1740906722911,0.89793894,607.69,607.05,4.15546215]
[1740906723111,1.12856176,607.68,607.05,4.15546215]
[1740906723810,1.12856176,607.67,607.05,4.15546215]
[1740906724311,5.66978466,607.8,607.05,4.15546215]
[1740906724511,3.96200826,607.79,607.05,4.15546215]
[1740906724710,3.96200826,607.78,607.05,4.15546215]
[1740906724905,2.33428535,607.77,607.05,4.15546215]
[1740906725109,5.08997944,607.76,607.05,4.15546215]
[1740906725308,2.52524216,607.75,607.05,4.15546215]
[1740906725512,2.02557731,607.74,607.05,4.15546215]
[1740906725714,0.89756269,607.73,607.05,4.15546215]
[1740906726008,0.89756269,607.72,607.05,4.15546215]
[1740906726310,0.89756269,607.71,607.05,4.15546215]
[1740906726515,0.89756269,607.7,607.05,4.15546215]
[1740906726713,0.89756269,607.69,607.05,4.15546215]
[1740906726914,1.12801462,607.71,607.05,4.15546215]
[1740906727108,3.57964038,607.9,607.05,4.15546215]
[1740906727109,2.02536365,607.7,607.05,4.15546215]
[1740906727328,0.89734903,607.69,607.05,4.15546215]
[1740906727613,0.89734903,607.68,607.05,4.15546215]
[1740906727818,2.02536365,607.67,607.05,4.15546215]
[1740906728016,0.89734903,607.66,607.05,4.15546215]
[1740906728314,1.71862461,607.89,607.05,4.15546215]
[1740906728315,2.02533317,607.65,607.05,4.15546215]
[1740906728514,1.12801462,607.65,607.05,4.15546215]
[1740906729116,1.12801462,607.64,607.05,4.15546215]
[1740906729815,1.12801462,607.63,607.05,4.15546215]
[1740906730214,1.12801462,607.62,607.05,4.15546215]
[1740906730613,1.12801462,607.61,607.05,4.15546215]
[1740906731215,1.62724055,607.7,607.05,4.15546215]
[1740906731414,2.52464255,607.69,607.05,4.15546215]
[1740906731616,2.52464255,607.68,607.05,4.15546215]
[1740906731815,2.52470785,607.67,607.05,4.15546215]
[1740906732015,0.897402,607.66,607.05,4.15546215]
[1740906732214,0.897402,607.65,607.05,4.15546215]
[1740906732418,0.897402,607.64,607.05,4.15546215]
[1740906732619,1.12776345,607.65,607.05,4.15546215]
[1740906732813,0.89741369,607.64,607.05,4.15546215]
[1740906733017,1.12776345,607.65,607.05,4.15546215]
[1740906733320,2.02517801,607.64,607.05,4.15546215]
[1740906733520,1.12776345,607.64,607.05,4.15546215]
[1740906733920,1.12776345,607.63,607.05,4.15546215]
[1740906734419,1.12776345,607.62,607.05,4.15546215]
[1740906734815,1.12776345,607.61,607.05,4.15546215]
[1740906735419,2.52528528,607.75,607.05,4.15546215]
[1740906735614,2.52528528,607.74,607.05,4.15546215]
[1740906735816,0.89763305,607.73,607.05,4.15546215]
[1740906736014,0.89763305,607.72,607.05,4.15546215]
[1740906736220,0.89763305,607.71,607.05,4.15546215]
[1740906736421,1.1280846,607.72,607.05,4.15546215]
[1740906736822,1.1280846,607.71,607.05,4.15546215]
[1740906737616,1.1280846,607.7,607.05,4.15546215]
[1740906738319,1.1280846,607.69,607.05,4.15546215]
[1740906738924,6.56949199,607.96,607.05,4.15546215]
[1740906739217,6.56949199,607.95,607.05,4.15546215]
[1740906739422,6.56949199,607.94,607.05,4.15546215]
[1740906739619,6.56949199,607.93,607.05,4.15546215]
[1740906739816,3.96369663,607.92,607.05,4.15546215]
[1740906740021,3.96369663,607.91,607.05,4.15546215]
[1740906740217,3.96369663,607.9,607.05,4.15546215]
[1740906740421,3.96369663,607.89,607.05,4.15546215]
[1740906740622,2.52682708,607.88,607.05,4.15546215]
[1740906740822,2.52682708,607.87,607.05,4.15546215]
[1740906741022,2.52682708,607.86,607.05,4.15546215]
[1740906741224,2.52682708,607.85,607.05,4.15546215]
[1740906741524,1.12869423,607.85,607.05,4.15546215]
[1740906741918,2.33516974,607.84,607.05,4.15546215]
[1740906742120,1.43702753,607.83,607.05,4.15546215]
[1740906742325,1.12869423,607.85,607.05,4.15546215]
[1740906742530,3.96431592,607.84,607.05,4.15546215]
[1740906742822,3.96444254,607.83,607.05,4.15546215]
[1740906743026,6.56981835,607.82,607.05,4.15546215]
[1740906743221,6.56981835,607.81,607.05,4.15546215]
[1740906743421,6.56981835,607.8,607.05,4.15546215]
[1740906743625,3.96410162,607.79,607.05,4.15546215]
[1740906743825,3.96410162,607.78,607.05,4.15546215]
[1740906744022,3.96410162,607.77,607.05,4.15546215]
[1740906744227,3.96410162,607.76,607.05,4.15546215]
[1740906744428,3.96450339,607.75,607.05,4.15546215]
[1740906744628,3.96450339,607.74,607.05,4.15546215]
[1740906744825,0.97693557,608.06,607.05,4.15546215]
[1740906744826,3.96457774,607.73,607.05,4.15546215]
[1740906745026,2.52729341,607.72,607.05,4.15546215]
[1740906745327,2.52729341,607.71,607.05,4.15546215]
[1740906745529,2.52729341,607.7,607.05,4.15546215]
[1740906745828,2.52729341,607.69,607.05,4.15546215]
[1740906746029,2.52729341,607.68,607.05,4.15546215]
[1740906746329,2.52729341,607.67,607.05,4.15546215]
[1740906746630,2.0272515,607.66,607.05,4.15546215]
[1740906746825,0.89830271,607.65,607.05,4.15546215]
[1740906747129,0.89830271,607.64,607.05,4.15546215]
[1740906747325,0.89830271,607.63,607.05,4.15546215]
[1740906747524,0.89831073,607.62,607.05,4.15546215]
[1740906747722,1.12894879,607.61,607.05,4.15546215]
[1740906748424,2.02721299,607.6,607.05,4.15546215]
[1740906748627,0.8982642,607.59,607.05,4.15546215]
[1740906748829,0.8982642,607.58,607.05,4.15546215]
[1740906749030,1.12894879,607.59,607.05,4.15546215]
[1740906749424,1.12894879,607.58,607.05,4.15546215]
[1740906750030,1.62890796,607.74,607.05,4.15546215]
[1740906750227,2.52719757,607.73,607.05,4.15546215]
[1740906750426,2.52719757,607.72,607.05,4.15546215]
[1740906750625,1.71865997,607.9,607.05,4.15546215]
[1740906750626,3.65609655,607.71,607.05,4.15546215]
[1740906750826,2.52719757,607.7,607.05,4.15546215]
[1740906751026,2.52719757,607.69,607.05,4.15546215]
[1740906751232,2.02718859,607.68,607.05,4.15546215]
[1740906751532,0.89828961,607.67,607.05,4.15546215]
[1740906751733,2.02718859,607.66,607.05,4.15546215]
[1740906751931,0.89828961,607.65,607.05,4.15546215]
[1740906752132,1.12889898,607.65,607.05,4.15546215]
[1740906752730,1.12889898,607.64,607.05,4.15546215]
[1740906753025,2.02751011,607.63,607.05,4.15546215]
[1740906753226,1.12889898,607.63,607.05,4.15546215]
[1740906753627,1.12889898,607.62,607.05,4.15546215]
[1740906754031,1.12889898,607.61,607.05,4.15546215]
[1740906754431,1.12889898,607.6,607.05,4.15546215]
[1740906754930,1.12889898,607.59,607.05,4.15546215]
[1740906755926,1.12889898,607.58,607.05,4.15546215]
[1740906756326,1.12889898,607.57,607.05,4.15546215]
[1740906756928,1.12889898,607.56,607.05,4.15546215]
[1740906757733,1.12889898,607.55,607.05,4.15546215]
[1740906758535,1.12889898,607.54,607.05,4.15546215]
[1740906759034,6.573701,607.82,607.05,4.15546215]
[1740906759237,6.573701,607.81,607.05,4.15546215]
[1740906759536,7.70322891,607.8,607.05,4.15546215]
[1740906759735,6.573701,607.79,607.05,4.15546215]
[1740906759938,6.573701,607.78,607.05,4.15546215]
[1740906760137,6.573701,607.77,607.05,4.15546215]
[1740906760338,3.9663474,607.76,607.05,4.15546215]
[1740906760538,3.9663474,607.75,607.05,4.15546215]
[1740906760732,3.9663474,607.74,607.05,4.15546215]
[1740906760932,3.9663474,607.73,607.05,4.15546215]
[1740906761131,3.9663474,607.72,607.05,4.15546215]
[1740906761331,5.09598167,607.71,607.05,4.15546215]
[1740906761535,3.9664137,607.7,607.05,4.15546215]
[1740906761734,2.52848552,607.69,607.05,4.15546215]
[1740906761938,3.65801343,607.68,607.05,4.15546215]
[1740906762239,3.96609434,607.67,607.05,4.15546215]
[1740906762440,3.96609434,607.66,607.05,4.15546215]
[1740906762737,3.96609434,607.65,607.05,4.15546215]
[1740906762938,2.52848552,607.64,607.05,4.15546215]
[1740906763138,2.52848552,607.63,607.05,4.15546215]
[1740906763339,2.52848552,607.62,607.05,4.15546215]
[1740906763533,2.52848552,607.61,607.05,4.15546215]
[1740906763733,2.5280417,607.6,607.05,4.15546215]
[1740906763933,0.89837362,607.59,607.05,4.15546215]
[1740906764133,0.89837362,607.58,607.05,4.15546215]
[1740906764337,1.12952791,607.58,607.05,4.15546215]
[1740906765137,1.12952791,607.57,607.05,4.15546215]
[1740906765537,1.12952791,607.56,607.05,4.15546215]
[1740906766541,3.06619726,607.69,607.05,4.15546215]
[1740906766736,2.52723675,607.68,607.05,4.15546215]
[1740906766933,0.89829142,607.67,607.05,4.15546215]
[1740906767140,0.89829142,607.66,607.05,4.15546215]
[1740906767443,0.89829142,607.65,607.05,4.15546215]
[1740906767643,0.89829142,607.64,607.05,4.15546215]
[1740906767836,1.12896723,607.63,607.05,4.15546215]
[1740906768241,1.12896723,607.62,607.05,4.15546215]
[1740906768636,1.12896723,607.61,607.05,4.15546215]
[1740906768940,5.67296986,607.78,607.05,4.15546215]
[1740906769139,6.57131477,607.77,607.05,4.15546215]
[1740906769442,0.9770077,607.89,607.05,4.15546215]
[1740906769443,7.70027386,607.76,607.05,4.15546215]
[1740906769642,6.57131477,607.75,607.05,4.15546215]
[1740906769943,7.70027386,607.74,607.05,4.15546215]
[1740906770145,3.96476765,607.73,607.05,4.15546215]
[1740906770345,3.96476765,607.72,607.05,4.15546215]
[1740906770644,3.96476765,607.71,607.05,4.15546215]
[1740906770838,3.96476765,607.7,607.05,4.15546215]
[1740906771040,0.89834491,607.69,607.05,4.15546215]
[1740906771245,2.52740586,607.68,607.05,4.15546215]
[1740906771447,0.89834491,607.67,607.05,4.15546215]
[1740906771745,2.027304,607.66,607.05,4.15546215]
[1740906771944,0.89834491,607.65,607.05,4.15546215]
[1740906772139,0.89836642,607.64,607.05,4.15546215]
[1740906772344,0.89836642,607.63,607.05,4.15546215]
[1740906772545,0.89836642,607.62,607.05,4.15546215]
[1740906772739,1.12895909,607.64,607.05,4.15546215]
[1740906772939,0.8983779,607.63,607.05,4.15546215]
[1740906773144,2.02733699,607.62,607.05,4.15546215]
[1740906773344,1.12895909,607.62,607.05,4.15546215]
[1740906774046,1.12895909,607.61,607.05,4.15546215]
[1740906774745,1.12895909,607.6,607.05,4.15546215]
[1740906775750,1.12895909,607.59,607.05,4.15546215]
[1740906776653,1.12895909,607.58,607.05,4.15546215]
[1740906776853,1.12895909,607.58,607.05,5.90046215]
[1740906777054,4.04444952,607.8,607.05,5.90046215]
[1740906777254,6.5724017,607.79,607.05,5.90046215]
[1740906777455,6.5724017,607.78,607.05,5.90046215]
[1740906777754,6.5724017,607.77,607.05,5.90046215]
[1740906777951,6.5724017,607.76,607.05,5.90046215]
[1740906778149,6.5724017,607.75,607.05,5.90046215]
[1740906778353,6.5724017,607.74,607.05,5.90046215]
[1740906778551,6.57238002,607.73,607.05,5.90046215]
[1740906778750,6.57238002,607.72,607.05,5.90046215]
[1740906778953,3.96543796,607.71,607.05,5.90046215]
[1740906779155,3.96543796,607.7,607.05,5.90046215]
[1740906779355,3.96543796,607.69,607.05,5.90046215]
[1740906779556,3.96543796,607.68,607.05,5.90046215]
[1740906779752,2.52785273,607.67,607.05,5.90046215]
[1740906779956,2.52785273,607.66,607.05,5.90046215]
[1740906780154,2.52785273,607.65,607.05,5.90046215]
[1740906780357,0.89851395,607.64,607.05,5.90046215]
[1740906780559,1.12917816,607.64,607.05,5.90046215]
[1740906780758,0.89854723,607.63,607.05,5.90046215]
[1740906780959,0.89854723,607.62,607.05,5.90046215]
[1740906781158,1.12917816,607.64,607.05,5.90046215]
[1740906781358,1.12917816,607.62,607.05,5.90046215]
[1740906782058,1.12917816,607.61,607.05,5.90046215]
[1740906783062,1.12917816,607.6,607.05,5.90046215]
[1740906783665,1.12917816,607.59,607.05,5.90046215]
[1740906784260,1.43778364,607.68,607.05,5.90046215]
[1740906784464,2.5283309,607.67,607.05,5.90046215]
[1740906784663,2.5283309,607.66,607.05,5.90046215]
[1740906784864,0.89867487,607.65,607.05,5.90046215]
[1740906785065,0.89867487,607.64,607.05,5.90046215]
[1740906785266,0.89867487,607.63,607.05,5.90046215]
[1740906785565,0.89867487,607.62,607.05,5.90046215]
[1740906785759,1.12944124,607.64,607.05,5.90046215]
[1740906785960,2.02816261,607.63,607.05,5.90046215]
[1740906786160,0.89872137,607.62,607.05,5.90046215]
[1740906786465,1.12944124,607.63,607.05,5.90046215]
[1740906786865,1.12944124,607.62,607.05,5.90046215]
[1740906787468,1.12944124,607.61,607.05,5.90046215]
[1740906788263,2.60785193,607.85,607.05,5.90046215]
[1740906788461,6.57460033,607.84,607.05,5.90046215]
[1740906788666,6.57460033,607.83,607.05,5.90046215]
[1740906788867,7.70419177,607.82,607.05,5.90046215]
[1740906789162,6.57460033,607.81,607.05,5.90046215]
[1740906789365,6.57460033,607.8,607.05,5.90046215]
[1740906789569,7.70419177,607.79,607.05,5.90046215]
[1740906789761,6.57460033,607.78,607.05,5.90046215]
[1740906789967,6.57460033,607.77,607.05,5.90046215]
[1740906790166,6.57460033,607.76,607.05,5.90046215]
[1740906790467,3.9667484,607.75,607.05,5.90046215]
[1740906790667,3.96672526,607.74,607.05,5.90046215]
[1740906790869,3.96672526,607.73,607.05,5.90046215]
[1740906791061,3.96672526,607.72,607.05,5.90046215]
[1740906791266,2.52866954,607.71,607.05,5.90046215]
[1740906791464,2.52866954,607.7,607.05,5.90046215]
[1740906791664,0.89878482,607.69,607.05,5.90046215]
[1740906791866,0.89878482,607.68,607.05,5.90046215]
[1740906792164,2.02837626,607.67,607.05,5.90046215]
[1740906792362,0.89878482,607.66,607.05,5.90046215]
[1740906792569,1.12959144,607.66,607.05,5.90046215]
[1740906793069,1.12959144,607.65,607.05,5.90046215]
[1740906793468,1.12959144,607.64,607.05,5.90046215]
[1740906794066,1.12959144,607.63,607.05,5.90046215]
[1740906794569,2.02845705,607.62,607.05,5.90046215]
[1740906794770,1.12959144,607.62,607.05,5.90046215]
[1740906794975,1.12959144,607.61,607.05,5.90046215]
[1740906795463,1.12959144,607.6,607.05,5.90046215]
[1740906796269,1.12959144,607.59,607.05,5.90046215]
[1740906796971,4.04638275,607.82,607.05,5.90046215]
[1740906797172,6.57539002,607.81,607.05,5.90046215]
[1740906797472,7.70506859,607.8,607.05,5.90046215]
[1740906797670,6.57539002,607.79,607.05,5.90046215]
[1740906797871,6.57539002,607.78,607.05,5.90046215]
[1740906798066,6.57539002,607.77,607.05,5.90046215]
[1740906798266,6.57539002,607.76,607.05,5.90046215]
[1740906798470,6.57539002,607.75,607.05,5.90046215]
[1740906798771,7.70506859,607.74,607.05,5.90046215]
[1740906798971,6.57539002,607.73,607.05,5.90046215]
[1740906799272,6.57539002,607.72,607.05,5.90046215]
[1740906799565,7.70506859,607.71,607.05,5.90046215]
[1740906799770,6.57539002,607.7,607.05,5.90046215]
[1740906799972,6.57539002,607.69,607.05,5.90046215]
[1740906800167,6.57539002,607.68,607.05,5.90046215]
[1740906800473,6.57539002,607.67,607.05,5.90046215]
[1740906800671,6.57539002,607.66,607.05,5.90046215]
[1740906800972,1.12967857,607.67,607.05,5.90046215]
[1740906801172,1.12967857,607.65,607.05,5.90046215]
[1740906801367,3.9679572,607.64,607.05,5.90046215]
[1740906801571,3.9679572,607.63,607.05,5.90046215]
[1740906801767,2.52942849,607.62,607.05,5.90046215]
[1740906801966,2.52942849,607.61,607.05,5.90046215]
[1740906802172,2.52942849,607.6,607.05,5.90046215]
[1740906802374,2.52942849,607.59,607.05,5.90046215]
[1740906802573,0.89908044,607.58,607.05,5.90046215]
[1740906802969,1.12967857,607.6,607.05,5.90046215]
[1740906803170,2.52982175,607.59,607.05,5.90046215]
[1740906803572,1.63059987,607.59,607.05,5.90046215]
[1740906803772,1.63059987,607.58,607.05,5.90046215]
[1740906804569,0.89922796,607.57,607.05,5.90046215]
[1740906804875,1.12967857,607.6,607.05,5.90046215]
[1740906806079,2.52979251,607.59,607.05,5.90046215]
[1740906806275,0.89921023,607.58,607.05,5.90046215]
[1740906806476,0.89921023,607.57,607.05,5.90046215]
[1740906806673,2.0288888,607.56,607.05,5.90046215]
[1740906806873,1.12967857,607.56,607.05,5.90046215]
[1740906807376,1.12967857,607.55,607.05,5.90046215]
[1740906807576,2.52091016,607.54,607.05,5.90046215]
[1740906807779,0.89888327,607.53,607.05,5.90046215]
[1740906808075,0.89888327,607.52,607.05,5.90046215]
[1740906808274,2.02856184,607.51,607.05,5.90046215]
[1740906808579,0.89888327,607.5,607.05,5.90046215]
[1740906808779,2.02856184,607.49,607.05,5.90046215]
[1740906808980,0.89888327,607.48,607.05,5.90046215]
[1740906809180,0.89888327,607.47,607.05,5.90046215]
[1740906809379,0.89888327,607.46,607.05,5.90046215]
[1740906809676,1.12967857,607.46,607.05,5.90046215]
[1740906809882,0.89838305,607.45,607.05,5.90046215]
[1740906810080,0.89838305,607.44,607.05,5.90046215]
[1740906810277,1.12967857,607.45,607.05,5.90046215]
[1740906810484,0.89813065,607.44,607.05,5.90046215]
[1740906810783,1.12967857,607.45,607.05,5.90046215]
[1740906811084,1.12967857,607.43,607.05,5.90046215]
[1740906811276,1.12967857,607.44,607.05,5.90046215]
[1740906811680,1.12967857,607.43,607.05,5.90046215]
[1740906812483,1.12967857,607.42,607.05,5.90046215]
[1740906812985,1.12967857,607.41,607.05,5.90046215]
[1740906813887,0.97660017,607.77,607.05,5.90046215]
[1740906813888,4.0401114,607.57,607.05,5.90046215]
[1740906814087,4.93759303,607.56,607.05,5.90046215]
[1740906814284,2.33342694,607.55,607.05,5.90046215]
[1740906814480,2.33342694,607.54,607.05,5.90046215]
[1740906814687,0.89748163,607.53,607.05,5.90046215]
[1740906814885,0.89748163,607.52,607.05,5.90046215]
[1740906815081,0.89748163,607.51,607.05,5.90046215]
[1740906815287,0.89748163,607.5,607.05,5.90046215]
[1740906815480,0.89748163,607.49,607.05,5.90046215]
[1740906815684,0.89748163,607.48,607.05,5.90046215]
[1740906815881,1.12769133,607.5,607.05,5.90046215]
[1740906815882,0.89748163,607.47,607.05,5.90046215]
[1740906816089,1.12769133,607.5,607.05,5.90046215]
[1740906816386,1.12769133,607.47,607.05,5.90046215]
[1740906817281,4.0382576,607.67,607.05,5.90046215]
[1740906817482,4.93536145,607.66,607.05,5.90046215]
[1740906817687,4.93536145,607.65,607.05,5.90046215]